bitfinex/quotes_SOLUSD_20250908
["timestamp","ask_amount","ask_price","bid_price","bid_amount"]
[1757344852252,18.23510407,215.54,215.53,0.03]
[1757344852460,28.73638636,215.54,215.53,0.03]
[1757344852643,29.41638636,215.54,215.53,0.03]
[1757344852842,18.23510407,215.54,215.53,0.03]
[1757344853151,18.91510407,215.54,215.53,0.03]
[1757344853652,29.41638636,215.54,215.53,38.07]
[1757344853852,13.59559401,215.53,215.48,0.2]
[1757344854056,24.0968763,215.53,215.48,0.2]
[1757344854266,18.91531933,215.53,215.48,0.2]
[1757344854559,29.41660162,215.53,215.48,0.2]
[1757344855274,18.91531933,215.53,215.48,0.2]
[1757344855445,18.91531933,215.53,215.52,38.07]
[1757344856648,18.23531933,215.53,215.52,38.07]
[1757344857150,29.41660162,215.53,215.52,38.07]
[1757344857551,18.91531933,215.53,215.52,38.07]
[1757344858459,18.23531933,215.53,215.52,38.07]
[1757344860043,18.91531933,215.53,215.52,38.07]
[1757344860340,18.23531933,215.53,215.52,38.07]
[1757344861057,18.91531933,215.53,215.52,38.07]
[1757344861237,18.23531933,215.53,215.52,38.01]
[1757344862777,13.59559401,215.53,215.52,38.01]
[1757344863361,14.27559401,215.53,215.52,38.01]
[1757344863765,14.27559401,215.53,215.52,0.03]
[1757344863972,14.27559401,215.53,215.52,38.11]
[1757344864176,18.74836341,215.53,215.52,38.11]
[1757344864381,5.31972532,215.53,215.52,38.11]
[1757344865364,9.79249472,215.53,215.52,38.11]
[1757344865758,5.31972532,215.53,215.52,38.11]
[1757344866067,9.79249472,215.53,215.52,38.11]
[1757344866272,5.31972532,215.53,215.52,38.11]
[1757344866654,4.63972532,215.53,215.52,38.11]
[1757344867456,18.23507351,215.55,215.52,38.11]
[1757344867762,13.91820733,215.6,215.52,42.74992997]
[1757344868070,11.59462875,215.62,215.52,42.74992997]
[1757344868263,4.63757362,215.63,215.52,42.74992997]
[1757344868264,4.63757362,215.63,215.56,26.0]
[1757344868567,11.59318335,215.65,215.57,38.02]
[1757344868874,13.59559401,215.64,215.57,38.02]
[1757344869370,13.59559401,215.62,215.57,38.02]
[1757344869562,0.06,215.58,215.57,38.02]
[1757344871150,0.06,215.58,215.57,38.08]
[1757344873254,0.06,215.58,215.54,0.5]
[1757344873777,0.06,215.58,215.55,38.18]
[1757344873955,0.06,215.58,215.54,0.5]
[1757344873956,0.06,215.58,215.56,38.18]
[1757344875082,0.06,215.58,215.56,42.81899277]
[1757344875263,0.06,215.58,215.56,38.18]
[1757344875466,0.06,215.58,215.56,42.81896681]
[1757344876263,0.01186905,215.58,215.57,13.90981801]
[1757344876561,13.59559401,215.66,215.59,26.0]
[1757344876772,13.59559401,215.66,215.6,38.12]
[1757344877077,18.23253933,215.66,215.6,42.7582142]
[1757344878076,29.82486057,215.66,215.54,0.5]
[1757344878375,59.47,215.65,215.58,26.0]
[1757344878566,59.47,215.65,215.59,38.08]
[1757344878876,58.8,215.64,215.59,38.08]
[1757344879084,18.23317094,215.63,215.59,38.08]
[1757344879270,13.59559401,215.63,215.59,38.08]
[1757344879578,58.8,215.64,215.59,42.71842268]
[1757344879759,13.59559401,215.63,215.59,38.08]
[1757344880665,13.59559401,215.61,215.59,38.08]
[1757344880977,13.59559401,215.61,215.58,26.0]
[1757344880978,13.59559401,215.61,215.6,38.06]
[1757344881176,18.90359781,215.61,215.6,38.06]
[1757344881355,4.63757585,215.63,215.6,38.06]
[1757344881562,13.59559401,215.63,215.6,38.06]
[1757344882478,63.43738536,215.64,215.6,38.06]
[1757344882873,58.8,215.64,215.6,42.69819356]
[1757344883253,0.67,215.63,215.6,38.06]
[1757344883474,14.26559401,215.62,215.61,38.02]
[1757344883681,73.06559401,215.62,215.61,38.02]
[1757344885278,77.70338271,215.62,215.61,38.02]
[1757344885672,72.39559401,215.62,215.61,38.02]
[1757344885868,77.03338271,215.62,215.61,38.02]
[1757344886100,77.70338271,215.62,215.61,38.02]
[1757344886766,18.90338271,215.62,215.61,38.02]
[1757344888190,25.94665796,215.62,215.61,38.02]
[1757344890471,18.90338271,215.62,215.61,38.02]
[1757344891972,18.23338271,215.62,215.61,38.02]
[1757344892170,18.90338271,215.62,215.61,38.02]
[1757344897809,0.06,215.66,215.61,38.02]
[1757344897981,0.06,215.66,215.64,26.0]
[1757344898389,0.06,215.66,215.64,29.70623588]
[1757344899186,0.06,215.66,215.65,26.0]
[1757344899814,0.06,215.69,215.68,30.63649851]
[1757344899977,0.06,215.69,215.68,68.49649851]
[1757344901789,0.06,215.69,215.68,63.86]
[1757344902584,0.71,215.69,215.68,37.86]
[1757344903405,0.06,215.69,215.68,37.86]
[1757344903583,0.06,215.69,215.65,59.36]
[1757344903907,18.23246892,215.67,215.66,37.8]
[1757344904105,18.88246892,215.67,215.66,37.8]
[1757344905410,18.23246892,215.67,215.66,37.8]
[1757344905606,18.88246892,215.67,215.66,37.8]
[1757344905810,13.65559401,215.69,215.66,37.8]
[1757344906105,4.63656337,215.68,215.66,37.8]
[1757344906484,14.30559401,215.69,215.66,37.8]
[1757344906690,0.06,215.69,215.68,26.0]
[1757344908816,0.71,215.69,215.68,26.0]
[1757344909024,21.337844,215.69,215.65,33.36]
[1757344909328,13.59559401,215.65,215.58,0.03]
[1757344909533,20.627844,215.65,215.58,0.03]
[1757344909687,21.277844,215.65,215.58,0.03]
[1757344909885,14.24559401,215.65,215.58,0.03]
[1757344910108,13.59559401,215.63,215.58,0.03]
[1757344910510,13.59559401,215.63,215.59,37.82]
[1757344910511,14.24559401,215.63,215.59,37.82]
[1757344910902,13.59559401,215.63,215.59,37.82]
[1757344911090,13.59559401,215.63,215.59,38.48]
[1757344911797,13.59559401,215.63,215.59,37.82]
[1757344912006,4.6377887,215.62,215.59,38.48]
[1757344912690,13.59559401,215.65,215.6,0.66]
[1757344913118,13.59559401,215.65,215.61,0.66]
[1757344913327,13.59559401,215.65,215.62,0.66]
[1757344913515,13.59559401,215.65,215.63,38.28]
[1757344914222,18.23293594,215.65,215.63,38.28]
[1757344915998,18.23293594,215.65,215.64,0.5]
[1757344917210,11.59147606,215.68,215.64,0.5]
[1757344917404,13.59559401,215.67,215.64,0.5]
[1757344917717,0.06,215.69,215.65,0.66]
[1757344917894,0.06,215.69,215.66,0.66]
[1757344918902,0.06,215.69,215.67,0.66]
[1757344919102,0.06,215.69,215.68,38.32]
[1757344920916,14.30559401,215.69,215.68,38.32]
[1757344921911,18.29187756,215.69,215.68,38.32]
[1757344922106,18.29187756,215.69,215.68,38.98]
[1757344922107,0.06,215.69,215.68,38.98]
[1757344922316,0.06,215.69,215.68,43.61649851]
[1757344922625,0.06,215.72,215.71,26.0]
[1757344923114,0.06,215.72,215.71,60.02]
[1757344923912,0.06,215.72,215.71,64.65585369]
[1757344925024,0.06,215.72,215.71,60.02]
[1757344925222,0.06,215.72,215.71,103.09585369]
[1757344925422,0.06,215.72,215.71,103.07585369]
[1757344925729,18.22934063,215.81,215.71,64.65585369]
[1757344926031,30.52360456,215.81,215.75,26.0]
[1757344926221,30.52360456,215.81,215.72,0.67]
[1757344926222,13.59559401,215.79,215.72,0.67]
[1757344926728,13.59559401,215.79,215.73,38.42]
[1757344927099,13.59559401,215.79,215.74,64.4]
[1757344927305,4.6343498,215.78,215.74,64.4]
[1757344928316,13.59559401,215.77,215.72,0.67]
[1757344928518,13.59559401,215.77,215.71,59.36]
[1757344928728,0.71,215.8,215.73,0.67]
[1757344928939,13.59559401,215.79,215.73,0.67]
[1757344930516,13.59559401,215.79,215.73,5.30541736]
[1757344930838,13.59559401,215.85,215.75,26.0]
[1757344931028,13.59559401,215.85,215.76,39.01]
[1757344931236,13.59559401,215.85,215.77,0.67]
[1757344931433,13.59559401,215.85,215.79,26.0]
[1757344931618,13.59559401,215.85,215.8,38.32]
[1757344931815,0.71,215.84,215.8,38.32]
[1757344932209,18.22844616,215.85,215.8,38.32]
[1757344932414,5.34285215,215.85,215.8,38.32]
[1757344933149,5.34285215,215.85,215.8,38.99]
[1757344933318,5.34285215,215.85,215.81,38.28]
[1757344933519,5.34285215,215.85,215.78,0.67]
[1757344933719,5.34285215,215.85,215.79,38.26]
[1757344933934,18.9381912,215.87,215.79,38.93]
[1757344934322,18.9381912,215.87,215.8,38.24]
[1757344935232,18.9381912,215.87,215.81,0.67]
[1757344935414,18.2281912,215.87,215.81,0.67]
[1757344936315,18.2281912,215.87,215.81,5.30369067]
[1757344936923,18.2281912,215.87,215.82,38.2]
[1757344937149,18.2281912,215.87,215.82,0.67]
[1757344937442,58.8,215.86,215.84,26.0]
[1757344937655,4.63200876,215.89,215.85,0.67]
[1757344937825,4.63200876,215.89,215.86,38.2]
[1757344937826,5.34200876,215.89,215.86,38.2]
[1757344938221,58.8,215.9,215.87,38.2]
[1757344938445,59.51,215.9,215.88,38.2]
[1757344938726,0.71,215.89,215.84,26.67]
[1757344938941,0.71,215.89,215.85,38.2]
[1757344939140,63.43179099,215.9,215.84,26.67]
[1757344939354,13.59559401,215.89,215.83,0.67]
[1757344939528,14.30559401,215.89,215.84,38.42]
[1757344939726,13.59559401,215.87,215.84,38.42]
[1757344939929,0.71,215.87,215.8,0.67]
[1757344940363,4.63263226,215.86,215.81,38.4]
[1757344940535,4.63220307,215.88,215.82,39.07]
[1757344940735,4.63220307,215.88,215.83,0.67]
[1757344940928,5.34220307,215.88,215.84,38.42]
[1757344941335,4.63220307,215.88,215.81,0.67]
[1757344941545,5.34220307,215.88,215.82,38.44]
[1757344941745,5.34220307,215.88,215.82,26.0]
[1757344941963,0.1,215.91,215.86,26.0]
[1757344942263,132.4,216.13,215.83,39.09]
[1757344942264,0.71,216.22,216.01,26.0]
[1757344942428,13.87892947,216.3,216.11,26.0]
[1757344942627,10.49411813,216.45,216.02,32.9079921]
[1757344942628,0.71,216.22,216.15,26.0]
[1757344942864,0.71,216.21,216.15,26.0]
[1757344943241,0.71,216.2,216.12,39.87507805]
[1757344943447,0.71,216.19,216.13,33.34]
[1757344943649,0.71,216.18,216.13,33.34]
[1757344943829,0.71,216.18,216.06,3.70065776]
[1757344943830,0.71,216.17,216.08,13.87700349]
[1757344944034,13.59559401,216.19,216.08,13.87700349]
[1757344944035,13.59559401,216.15,216.09,38.4]
[1757344944335,10.49411813,216.1,215.99,33.32]
[1757344944543,13.59559401,216.08,216.0,38.4]
[1757344944734,13.59559401,216.1,216.0,38.4]
[1757344944940,0.71,216.09,216.0,51.99559401]
[1757344945258,0.71,216.08,216.02,26.0]
[1757344945749,13.59559401,216.12,216.04,26.0]
[1757344945951,14.30559401,216.12,216.04,26.0]
[1757344946134,13.59559401,216.1,216.05,38.38]
[1757344946329,13.59559401,216.1,215.99,37.94980128]
[1757344946330,4.62716136,216.12,215.99,33.32]
[1757344946644,13.59559401,216.11,216.0,4.62962962]
[1757344946845,13.59559401,216.09,216.04,26.0]
[1757344947240,0.71,216.08,216.04,26.0]
[1757344947447,14.30559401,216.11,216.04,26.0]
[1757344947651,13.59559401,216.09,216.05,38.52]
[1757344947831,14.30559401,216.09,216.05,38.52]
[1757344948035,0.71,216.13,216.04,26.0]
[1757344948248,13.59559401,216.12,216.05,38.48]
[1757344948650,13.59559401,216.1,216.05,38.48]
[1757344948840,14.30559401,216.1,216.05,38.48]
[1757344949156,13.59559401,216.13,216.05,38.48]
[1757344949363,0.71,216.09,216.05,38.48]
[1757344949548,13.59559401,216.08,216.05,38.48]
[1757344949852,13.59559401,216.13,216.05,38.48]
[1757344950060,13.59559401,216.11,216.05,38.48]
[1757344951056,13.59559401,216.09,215.99,33.32]
[1757344951234,13.59559401,216.09,215.91,3.67331708]
[1757344951235,13.59559401,216.0,215.84,33.3]
[1757344951566,13.59559401,215.96,215.85,38.6]
[1757344951735,13.59559401,215.98,215.86,4.63263226]
[1757344952063,13.59559401,215.96,215.88,26.0]
[1757344952560,13.59559401,215.96,215.89,64.6]
[1757344952945,13.59559401,215.96,215.89,38.6]
[1757344953469,15.12415886,215.99,215.9,38.58]
[1757344953470,24.08971214,215.94,215.9,38.58]
[1757344953650,0.71,215.93,215.91,38.56]
[1757344953959,13.59559401,215.96,215.91,38.56]
[1757344954161,18.93618887,215.96,215.91,38.56]
[1757344954352,13.59559401,215.94,215.91,38.56]
[1757344954662,0.71,216.0,215.94,26.0]
[1757344954865,0.71,216.04,215.94,26.0]
[1757344955163,13.59559401,216.03,215.94,26.0]
[1757344955389,13.59559401,216.03,215.96,0.5]
[1757344955568,0.68,216.02,215.97,38.56]
[1757344955868,0.68,216.01,215.97,38.56]
[1757344956046,5.30962962,216.0,215.98,38.56]
[1757344956246,4.62962962,216.0,215.98,38.56]
[1757344956440,5.30962962,216.0,215.98,38.56]
[1757344956643,14.27559401,215.99,215.96,0.5]
[1757344956852,13.59559401,215.97,215.96,0.5]
[1757344957170,24.08971214,215.97,215.96,29.88]
[1757344957356,11.17411813,215.97,215.96,29.88]
[1757344957678,11.17411813,215.97,215.79,11.58498027]
[1757344957874,42.20370369,216.0,215.81,4.63369681]
[1757344957875,10.49411813,215.91,215.81,4.63369681]
[1757344958049,4.63198851,215.89,215.85,38.64]
[1757344958247,13.59559401,215.9,215.85,38.64]
[1757344958665,4.63176411,215.91,215.85,43.27283865]
[1757344958847,4.63176411,215.91,215.85,38.64]
[1757344959468,11.57696518,215.95,215.85,43.2728038]
[1757344959668,0.68,215.99,215.88,26.0]
[1757344960048,4.63005833,215.98,215.89,4.63198851]
[1757344960244,4.63005833,215.98,215.93,26.0]
[1757344960964,5.31005833,215.98,215.93,26.0]
[1757344961474,4.63005833,215.98,215.93,26.0]
[1757344962072,13.59559401,215.99,215.93,26.0]
[1757344962664,0.68,215.98,215.9,0.5]
[1757344962860,13.59559401,215.97,215.91,38.56]
[1757344963178,13.59559401,215.95,215.91,38.56]
[1757344963378,16.20387036,216.0,215.91,38.56]
[1757344963379,11.17411813,216.0,215.91,38.56]
[1757344963558,13.59559401,215.99,215.91,43.19154543]
[1757344963863,13.59559401,215.98,215.91,43.19154543]
[1757344964249,4.62791558,216.08,215.94,26.0]
[1757344964451,10.49411813,216.04,215.94,26.0]
[1757344964668,11.17411813,216.03,215.94,26.0]
[1757344965174,14.27559401,216.06,215.94,26.0]
[1757344965383,18.90401661,216.06,215.98,26.0]
[1757344965576,10.49411813,216.04,215.99,38.56]
[1757344965873,10.49411813,216.0,215.99,38.56]
[1757344966371,24.76971214,216.0,215.99,38.58]
[1757344966579,35.26383027,216.0,215.99,38.58]
[1757344966777,24.08971214,216.0,215.99,38.58]
[1757344966970,35.26383027,216.0,215.99,38.58]
[1757344967355,39.89345989,216.0,215.99,38.58]
[1757344967957,39.89345989,216.0,215.83,11.58297742]
[1757344967958,13.59559401,215.99,215.83,11.58297742]
[1757344968159,10.49411813,215.89,215.83,11.58297742]
[1757344968483,0.68,215.98,215.87,26.0]
[1757344968785,10.49411813,215.9,215.86,4.63263226]
[1757344968971,10.49411813,215.9,215.88,26.0]
[1757344969167,13.59559401,215.95,215.89,38.6]
[1757344969378,13.59559401,215.95,215.89,43.23190061]
[1757344969580,18.22642837,215.95,215.89,43.23190061]
[1757344969975,18.22642837,215.95,215.89,38.6]
[1757344970180,28.7205465,215.95,215.89,38.6]
[1757344970394,0.68,216.04,215.92,26.0]
[1757344970573,13.59559401,216.02,215.92,26.0]
[1757344970776,24.08971214,215.96,215.93,38.6]
[1757344970983,13.59559401,215.98,215.94,38.6]
[1757344971376,13.59559401,215.99,215.94,43.23088719]
[1757344971579,10.49411813,215.98,215.94,38.6]
[1757344971784,10.49411813,215.97,215.94,38.6]
[1757344971975,10.49411813,215.98,215.94,38.6]
[1757344972917,10.49411813,215.98,215.94,43.23086791]
[1757344973074,10.49411813,216.01,215.97,26.0]
[1757344973272,13.59559401,216.05,215.97,26.0]
[1757344973590,10.49411813,216.03,215.97,30.63008244]
[1757344973893,10.49411813,216.0,215.97,30.63008244]
[1757344974077,18.22419499,216.05,215.97,30.63008244]
[1757344974300,10.49411813,216.0,215.97,30.63008244]
[1757344974799,10.49411813,216.01,215.97,30.63008244]
[1757344974995,0.06,216.09,216.0,26.0]
[1757344975201,13.65559401,216.09,216.01,38.52]
[1757344975395,10.49411813,216.02,216.01,38.52]
[1757344975909,10.49411813,216.02,216.01,39.02]
[1757344976808,4.62859776,216.05,216.01,39.02]
[1757344977210,10.49411813,216.02,216.01,39.02]
[1757344977507,10.49411813,216.02,216.01,38.98]
[1757344978093,24.08971214,216.02,216.01,38.98]
[1757344978616,29.39891313,216.02,216.01,38.96]
[1757344978804,39.89303126,216.02,216.01,38.96]
[1757344978990,13.59559401,216.01,215.88,0.5]
[1757344979190,10.49411813,215.91,215.88,5.13219813]
[1757344979403,10.49411813,215.91,215.9,26.0]
[1757344979900,10.49411813,215.91,215.9,30.63177396]
[1757344980106,13.59559401,215.97,215.9,64.42]
[1757344980301,10.49411813,215.91,215.9,38.42]
[1757344980614,24.08971214,215.91,215.9,38.4]
[1757344980994,13.59559401,215.91,215.9,38.4]
[1757344981190,24.08971214,215.91,215.9,38.4]
[1757344983700,11.57500865,215.99,215.9,38.4]
[1757344983897,10.49411813,215.92,215.9,43.03175257]
[1757344984216,13.59559401,215.98,215.9,43.53175257]
[1757344984397,10.49411813,215.93,215.9,38.9]
[1757344984599,10.49411813,215.93,215.9,38.4]
[1757344984798,10.49411813,215.91,215.9,38.4]
[1757344985498,24.08971214,215.91,215.9,38.4]
[1757344985905,24.77971214,215.91,215.9,38.4]
[1757344986105,28.72127158,215.91,215.9,38.4]
[1757344986510,10.49411813,215.91,215.9,38.4]
[1757344986718,11.57547806,215.98,215.9,38.9]
[1757344986902,10.49411813,215.93,215.9,38.9]
[1757344987091,10.49411813,215.92,215.9,38.4]
[1757344987294,10.49411813,215.91,215.9,38.4]
[1757344987714,10.49411813,215.92,215.9,38.4]
[1757344988310,13.59559401,215.97,215.9,38.4]
[1757344988500,10.49411813,215.93,215.9,38.4]
[1757344988702,13.59559401,215.97,215.9,38.4]
[1757344989011,10.49411813,215.93,215.9,38.4]
[1757344989321,10.49411813,215.94,215.9,38.4]
[1757344990311,7.02237476,215.93,215.9,38.4]
[1757344991023,7.02237476,215.94,215.9,69.03167648]
[1757344991220,13.59559401,215.96,215.9,69.03167648]
[1757344991430,7.02237476,215.91,215.9,38.4]
[1757344992014,7.02237476,215.92,215.9,38.4]
[1757344992424,13.59559401,215.92,215.9,38.4]
[1757344992625,20.61796877,215.92,215.9,38.4]
[1757344992804,7.02237476,215.91,215.9,38.4]
[1757344993541,0.69,215.93,215.88,26.0]
[1757344993837,14.28559401,215.92,215.89,38.34]
[1757344994014,7.02237476,215.9,215.87,26.0]
[1757344994206,0.69,215.92,215.88,38.34]
[1757344994405,4.63134494,215.92,215.88,38.34]
[1757344994612,7.02237476,215.89,215.88,38.34]
[1757344995129,20.61796877,215.89,215.88,38.34]
[1757344995333,13.59559401,215.89,215.88,38.34]
[1757344995518,20.61796877,215.89,215.88,38.34]
[1757344995715,7.02237476,215.89,215.88,38.34]
[1757344997425,14.28559401,215.89,215.88,38.34]
[1757344997637,21.30796877,215.89,215.88,38.34]
[1757344998311,14.28559401,215.89,215.88,38.34]
[1757344998515,21.30796877,215.89,215.88,38.34]
[1757344998736,25.93995728,215.89,215.88,38.34]
[1757344999428,18.91758252,215.89,215.88,38.34]
[1757344999936,20.61796877,215.89,215.88,38.34]
[1757345000142,21.30796877,215.89,215.88,38.34]
[1757345000453,25.93995728,215.89,215.88,38.34]
[1757345001630,13.59559401,215.88,215.85,0.03]
[1757345001941,7.02237476,215.86,215.85,0.03]
[1757345002119,20.61796877,215.86,215.85,38.21]
[1757345002310,21.30796877,215.86,215.85,38.21]
[1757345002965,25.94060103,215.86,215.85,38.21]
[1757345003231,13.59559401,215.85,215.74,33.82]
[1757345003444,13.59559401,215.85,215.74,33.32]
[1757345003445,7.02237476,215.77,215.74,33.32]
[1757345003749,7.02237476,215.76,215.74,33.32]
[1757345003913,13.59559401,215.79,215.74,33.32]
[1757345004239,7.02237476,215.79,215.75,0.5]
[1757345004448,7.02237476,215.79,215.76,38.14]
[1757345004652,13.59559401,215.82,215.77,0.5]
[1757345004942,13.59559401,215.81,215.77,5.13453854]
[1757345005144,13.59559401,215.81,215.77,4.63453854]
[1757345005321,7.02237476,215.81,215.76,42.77475639]
[1757345005522,13.59559401,215.87,215.79,26.0]
[1757345005724,13.59559401,215.87,215.8,38.14]
[1757345005725,7.02237476,215.84,215.8,38.14]
[1757345005945,20.61796877,215.83,215.8,38.14]
[1757345006168,21.30796877,215.83,215.8,38.14]
[1757345006454,20.61796877,215.81,215.8,38.14]
[1757345006623,21.30796877,215.81,215.8,38.14]
[1757345006820,39.366432,215.92,215.8,38.14]
[1757345007045,13.59559401,215.82,215.8,38.14]
[1757345007228,0.69,215.87,215.8,38.14]
[1757345007429,7.02237476,215.85,215.8,38.14]
[1757345007624,37.58039315,215.89,215.8,38.14]
[1757345007625,20.61796877,215.82,215.8,38.14]
[1757345008130,14.28559401,215.82,215.8,38.14]
[1757345008438,21.30796877,215.82,215.8,38.14]
[1757345008625,14.28559401,215.82,215.8,38.14]
[1757345008949,21.30796877,215.82,215.8,38.14]
[1757345009453,13.59559401,215.82,215.8,38.14]
[1757345010243,25.94146324,215.82,215.8,38.14]
[1757345010823,25.25146324,215.82,215.8,38.14]
[1757345011444,20.61796877,215.82,215.8,38.14]
[1757345011752,13.59559401,215.82,215.8,38.14]
[1757345012231,18.22915414,215.82,215.8,38.14]
[1757345012847,13.59559401,215.82,215.8,38.14]
[1757345013254,25.25147943,215.82,215.8,38.14]
[1757345014053,25.94147943,215.82,215.8,38.14]
[1757345014750,21.30796877,215.81,215.8,38.14]
[1757345015732,25.94167434,215.81,215.8,38.14]
[1757345018139,13.59559401,215.81,215.8,38.14]
[1757345018336,13.59559401,215.83,215.8,38.14]
[1757345020042,58.8,215.82,215.81,0.5]
[1757345020553,58.8,215.82,215.8,42.77392029]
[1757345021066,72.39559401,215.85,215.81,0.5]
[1757345021261,72.39559401,215.85,215.8,42.77392029]
[1757345021565,72.39559401,215.85,215.8,43.27392029]
[1757345022061,84.05088148,215.85,215.8,38.64]
[1757345022256,79.41796877,215.85,215.8,38.14]
[1757345022462,0.7,215.84,215.8,38.14]
[1757345022769,72.39559401,215.85,215.81,0.5]
[1757345023142,0.7,215.92,215.83,26.0]
[1757345023445,13.59559401,215.91,215.87,26.0]
[1757345023666,13.59559401,215.91,215.88,37.9]
[1757345023875,20.61796877,215.91,215.88,37.9]
[1757345024446,13.59559401,215.91,215.88,37.9]
[1757345024868,14.29559401,215.91,215.88,37.9]
[1757345025056,13.59559401,215.91,215.88,37.9]
[1757345025462,13.59559401,215.93,215.88,37.9]
[1757345025655,13.59559401,215.91,215.88,37.9]
[1757345026048,7.02237476,215.93,215.88,37.9]
[1757345026378,13.59559401,215.91,215.88,37.9]
[1757345026850,0.7,215.91,215.88,37.9]
[1757345027163,13.59559401,215.9,215.88,37.9]
[1757345028046,13.59559401,215.91,215.88,37.9]
[1757345028350,14.29559401,215.91,215.88,37.9]
[1757345028866,13.59559401,215.89,215.85,4.63282297]
[1757345029273,13.59559401,215.89,215.86,37.88]
[1757345029455,13.59559401,215.89,215.84,26.0]
[1757345029770,13.59559401,215.89,215.85,37.88]
[1757345029771,14.29559401,215.89,215.85,37.88]
[1757345029955,13.59559401,215.87,215.78,11.58544986]
[1757345030147,13.59559401,215.87,215.8,0.53]
[1757345030347,14.29559401,215.87,215.8,0.03]
[1757345030570,21.31796877,215.87,215.8,0.03]
[1757345030767,14.29559401,215.87,215.8,0.03]
[1757345030987,21.31796877,215.87,215.81,37.88]
[1757345031271,21.31796877,215.87,215.82,37.88]
[1757345031464,13.59559401,215.85,215.82,37.88]
[1757345031852,13.59559401,215.88,215.82,38.38]
[1757345032052,13.59559401,215.88,215.83,4.63327618]
[1757345032270,13.59559401,215.9,215.84,0.5]
[1757345033165,13.59559401,215.88,215.83,4.63327618]
[1757345033345,14.29559401,215.88,215.83,4.63327618]
[1757345033764,13.59559401,215.88,215.82,42.51345573]
[1757345034169,18.22789637,215.88,215.82,42.51345573]
[1757345034674,25.94977128,215.9,215.82,42.51345573]
[1757345035175,25.94977128,215.9,215.83,0.5]
[1757345036075,13.59559401,215.88,215.82,42.51345573]
[1757345036270,7.02237476,215.87,215.82,42.51345573]
[1757345036455,2.85385842,215.87,215.82,42.51345573]
[1757345036664,2.85385842,215.87,215.82,43.01345573]
[1757345037154,3.55385842,215.86,215.82,37.88]
[1757345037351,2.85385842,215.86,215.82,37.88]
[1757345037571,2.85385842,215.86,215.82,42.51342872]
[1757345038150,3.55385842,215.86,215.82,42.51342872]
[1757345038348,13.59559401,215.85,215.84,26.0]
[1757345039757,13.59559401,215.86,215.84,26.0]
[1757345040662,13.59559401,215.86,215.84,30.63305118]
[1757345040877,13.59559401,215.86,215.85,37.88]
[1757345041079,11.57711187,215.95,215.85,37.88]
[1757345041080,0.7,215.91,215.85,38.38]
[1757345041290,58.8,215.96,215.85,38.38]
[1757345041575,13.59559401,215.9,215.85,38.38]
[1757345041760,13.59559401,215.91,215.85,38.38]
[1757345041956,16.44945243,215.91,215.85,38.38]
[1757345042156,13.59559401,215.91,215.85,38.38]
[1757345042356,13.59559401,215.91,215.88,26.0]
[1757345042570,13.59559401,215.91,215.86,16.21421291]
[1757345042571,13.59559401,215.94,215.92,26.0]
[1757345042788,0.7,216.0,215.96,26.0]
[1757345042955,0.7,215.99,215.97,37.86]
[1757345043160,0.06,216.01,215.97,37.86]
[1757345043380,0.7,216.0,215.97,37.86]
[1757345043886,13.59559401,215.99,215.97,37.86]
[1757345044464,13.59559401,215.99,215.97,42.49023424]
[1757345044659,0.06,216.01,215.97,42.49023424]
[1757345044862,0.06,216.01,215.98,0.5]
[1757345045290,0.06,216.01,215.97,80.06591604]